fUSD/lending_fUSD_20250417
["ID","MTS","AMOUNT","RATE_DAILY","PERIOD"]
[358280272,1744894257679,-1000.0,0.00273972,120]
[358280273,1744894257690,-500.0,0.00273972,120]
[358280274,1744894257700,-591.10079735,0.00273972,120]
[358280275,1744894257709,-500.0,0.00273972,120]
[358280276,1744894257720,-521.5585476,0.00273972,120]
[358280277,1744894257730,-500.0,0.00273972,120]
[358280278,1744894257739,-500.0,0.00273972,120]
[358280279,1744894257749,-541.93160792,0.00273972,120]
[358280280,1744894257759,-500.0,0.00273972,120]
[358280281,1744894257769,-500.0,0.00273972,120]
[358280282,1744894257779,-500.0,0.00273972,120]
[358280283,1744894257790,-500.0,0.00273972,120]
[358280284,1744894257799,-500.0,0.00273972,120]
[358280285,1744894257808,-500.0,0.00273972,120]
[358280286,1744894257818,-500.0,0.00273972,120]
[358280287,1744894257827,-500.0,0.00273972,120]
[358280288,1744894257836,-225.22,0.00273972,120]
[358280289,1744894257845,-500.0,0.00273972,120]
[358280290,1744894257855,-500.0,0.00273972,120]
[358280291,1744894257864,-500.0,0.00273972,120]
[358280292,1744894257874,-500.0,0.00273972,120]
[358280293,1744894257883,-500.0,0.00273972,120]
[358280294,1744894257893,-500.0,0.00273972,120]
[358280295,1744894257903,-500.0,0.00273972,120]
[358280296,1744894257912,-500.0,0.00273972,120]
[358280297,1744894257921,-500.0,0.00273972,120]
[358280298,1744894257930,-500.0,0.00273972,120]
[358280299,1744894257939,-500.0,0.00273972,120]
[358280300,1744894257949,-500.0,0.00273972,120]
[358280301,1744894257958,-500.0,0.00273972,120]
[358280302,1744894257968,-500.0,0.00273972,120]
[358280303,1744894257977,-500.0,0.00273972,120]
[358280304,1744894257986,-500.0,0.00273972,120]
[358280305,1744894257996,-500.0,0.00273972,120]
[358280306,1744894258006,-500.0,0.00273972,120]
[358280307,1744894258015,-500.0,0.00273972,120]
[358280308,1744894258024,-500.0,0.00273972,120]
[358280309,1744894258033,-500.0,0.00273972,120]
[358280310,1744894258042,-500.0,0.00273972,120]
[358280311,1744894258051,-500.0,0.00273972,120]
[358280312,1744894258061,-500.0,0.00273972,120]
[358280313,1744894258070,-615.19,0.00273972,120]
[358280314,1744894258080,-500.0,0.00273972,120]
[358280315,1744894258089,-500.0,0.00273972,120]
[358280316,1744894258099,-500.0,0.00273972,120]
[358280317,1744894258108,-500.0,0.00273972,120]
[358280318,1744894258117,-500.0,0.00273972,120]
[358280319,1744894258127,-1033.33,0.00273972,120]
[358280320,1744894258136,-1033.33,0.00273972,120]
[358280321,1744894258146,-1033.33,0.00273972,120]
[358280322,1744894258156,-1033.33,0.00273972,120]
[358280323,1744894258165,-1033.33,0.00273972,120]
[358280324,1744894258175,-1033.33,0.00273972,120]
[358280325,1744894258185,-1033.33,0.00273972,120]
[358280326,1744894258195,-1033.33,0.00273972,120]
[358280327,1744894258204,-1033.33,0.00273972,120]
[358280328,1744894258215,-1033.33,0.00273972,120]
[358280329,1744894258225,-1033.33,0.00273972,120]
[358280330,1744894258235,-1033.33,0.00273972,120]
[358280331,1744894258245,-1033.33,0.00273972,120]
[358280332,1744894258254,-1033.33,0.00273972,120]
[358280333,1744894258263,-1033.33,0.00273972,120]
[358280334,1744894258273,-1033.33,0.00273972,120]
[358280335,1744894258282,-1033.33,0.00273972,120]
[358280336,1744894258293,-1033.33,0.00273972,120]
[358280337,1744894258306,-1033.33,0.00273972,120]
[358280338,1744894258316,-1033.33,0.00273972,120]
[358280339,1744894258325,-1033.33,0.00273972,120]
[358280340,1744894258335,-1033.33,0.00273972,120]
[358280341,1744894258344,-200.0,0.00273973,120]
[358280342,1744894258354,-2916.04,0.00279452,120]
[358280343,1744894258363,-500.0,0.00279452,120]
[358280344,1744894258374,-705.82,0.00279452,120]
[358280345,1744894258383,-30613.69,0.00279452,7]
[358280346,1744894258393,-1272.09,0.00279452,120]
[358280347,1744894258403,-505.38,0.00279452,120]
[358280348,1744894258412,-1305.62,0.00279452,120]
[358280349,1744894258422,-619.23,0.00279452,120]
[358280350,1744894258432,-555.88,0.00279452,120]
[358280351,1744894258442,-673.81,0.00279452,120]
[358280352,1744894258452,-1644.03,0.00279452,120]
[358280353,1744894258462,-500.0,0.00279452,120]
[358280354,1744894258472,-1033.33,0.00279452,120]
[358280355,1744894258482,-1743.9226693,0.0028654,117]
[358280356,1744894258492,-2916.08,0.00287671,120]
[358280357,1744894258502,-423.42134418,0.00287671,120]
[358280358,1744894258512,-706.04179042,0.00287671,120]
[358280359,1744894258521,-30613.70720361,0.00287671,7]
[358280360,1744894258530,-1272.17509088,0.00287671,120]
[358280361,1744894258541,-505.44398387,0.00287671,120]
[358280362,1744894258551,-619.40400498,0.00287671,120]
[358280363,1744894258560,-1305.77,0.00287671,120]
[358280364,1744894258570,-555.88909268,0.00287671,120]
[358280365,1744894258580,-673.99202472,0.00287671,120]
[358280366,1744894258590,-1644.21211321,0.00287671,120]
[358280367,1744894258601,-236.17761328,0.00287671,120]
[358280368,1744894258611,-1033.41,0.00287671,120]
[358280369,1744894258620,-10264.70817489,0.0029,120]
[358280370,1744894258630,-500.0,0.00290409,120]
[358280371,1744894258639,-521.8067056,0.0029041,120]
[358280372,1744894258648,-524.08289247,0.0029041,120]
[358280373,1744894258657,-526.76830302,0.0029041,120]
[358280374,1744894258666,-500.0,0.0029041,120]
[358280375,1744894258676,-500.0,0.0029041,120]
[358280376,1744894258687,-500.0,0.0029041,120]
[358280377,1744894258697,-500.0,0.0029041,120]
[358280378,1744894258707,-500.0,0.0029041,120]
[358280379,1744894258717,-500.0,0.0029041,120]
[358280380,1744894258727,-500.0,0.0029041,120]
[358280381,1744894258736,-500.0,0.0029041,120]
[358280382,1744894258746,-500.0,0.0029041,2]
[358280383,1744894258755,-500.0,0.0029041,120]
[358280384,1744894258765,-500.0,0.0029041,120]
[358280385,1744894258775,-500.0,0.0029041,120]
[358280386,1744894258785,-500.0,0.0029041,120]
[358280387,1744894258794,-500.0,0.0029041,120]
[358280388,1744894258804,-500.0,0.0029041,120]
[358280389,1744894258813,-500.0,0.0029041,120]
[358280390,1744894258823,-502.21617856,0.0029041,120]
[358280391,1744894258832,-1000.0,0.0029041,120]
[358280392,1744894258842,-500.0,0.0029041,120]
[358280393,1744894258851,-500.0,0.0029041,120]
[358280394,1744894258861,-500.0,0.0029041,120]
[358280395,1744894258870,-500.0,0.0029041,120]
[358280396,1744894258880,-500.0,0.0029041,120]
[358280397,1744894258889,-500.0,0.0029041,120]
[358280398,1744894258899,-500.0,0.0029041,120]
[358280399,1744894258908,-500.0,0.0029041,120]
[358280400,1744894258917,-500.0,0.0029041,120]
[358280401,1744894258927,-500.0,0.0029041,120]
[358280402,1744894258938,-244.84,0.0029041,120]
[358280403,1744894258949,-500.0,0.0029041,120]
[358280404,1744894258959,-500.0,0.0029041,120]
[358280405,1744894258968,-540.74049732,0.0029041,120]
[358280406,1744894258978,-500.66853145,0.0029041,120]
[358280407,1744894258988,-500.0,0.0029041,120]
[358280408,1744894258997,-500.0,0.0029041,120]
[358280409,1744894259008,-540.1,0.0029041,120]
[358280410,1744894259019,-500.0,0.0029041,120]
[358280411,1744894259028,-500.0,0.0029041,120]
[358280412,1744894259038,-500.0,0.0029041,120]
[358280413,1744894259048,-508.75196503,0.0029041,120]
[358280414,1744894259058,-500.0,0.0029041,120]
[358280415,1744894259068,-500.0,0.0029041,120]
[358280416,1744894259077,-500.0,0.0029041,120]
[358280417,1744894259087,-500.0,0.0029041,120]
[358280418,1744894259097,-500.0,0.0029041,120]
[358280419,1744894259107,-500.0,0.0029041,120]
[358280420,1744894259117,-576.25080737,0.0029041,120]
[358280421,1744894259126,-500.0,0.0029041,120]
[358280422,1744894259136,-500.0,0.0029041,120]
[358280423,1744894259146,-394.84752758,0.0029041,120]
[358280424,1744894259156,-500.0,0.0029041,120]
[358280425,1744894259165,-500.0,0.0029041,120]
[358280426,1744894259175,-500.0,0.0029041,120]
[358280427,1744894259185,-502.94,0.0029041,120]
[358280428,1744894259194,-500.0,0.0029041,120]
[358280429,1744894259203,-425.04116469,0.0029041,120]
[358280430,1744894259212,-500.0,0.0029041,120]
[358280431,1744894259221,-500.0,0.0029041,120]
[358280432,1744894259231,-500.0,0.0029041,120]
[358280433,1744894259240,-500.0,0.0029041,120]
[358280434,1744894259249,-500.0,0.0029041,120]
[358280435,1744894259259,-500.0,0.0029041,120]
[358280436,1744894259268,-506.18,0.0029041,120]
[358280437,1744894259278,-503.36067534,0.0029041,120]
[358280438,1744894259288,-537.34179468,0.0029041,120]
[358280439,1744894259299,-500.0,0.0029041,120]
[358280440,1744894259308,-526.8783022,0.0029041,120]
[358280441,1744894259317,-500.0,0.0029041,120]
[358280442,1744894259326,-500.0,0.0029041,120]
[358280443,1744894259334,-500.0,0.0029041,120]
[358280444,1744894259342,-500.0,0.0029041,120]
[358280445,1744894259351,-500.0,0.0029041,120]
[358280446,1744894259359,-500.0,0.0029041,120]
[358280447,1744894259367,-500.0,0.0029041,120]
[358280448,1744894259375,-500.0,0.0029041,120]
[358280449,1744894259384,-486.16836666,0.0029041,120]
[358280450,1744894259393,-500.0,0.0029041,120]
[358280451,1744894259402,-500.0,0.0029041,120]
[358280452,1744894259411,-500.0,0.0029041,120]
[358280453,1744894259420,-500.0,0.0029041,120]
[358280454,1744894259430,-500.0,0.0029041,120]
[358280455,1744894259439,-500.0,0.0029041,120]
[358280456,1744894259542,-2087.29587474,0.0029041,120]
[358280457,1744894259551,-500.0,0.0029041,120]
[358280458,1744894259561,-307.92370059,0.0029041,120]
[358280459,1744894259571,-500.0,0.0029041,120]
[358280460,1744894259582,-500.0,0.0029041,120]
[358280461,1744894259592,-500.0,0.0029041,120]
[358280462,1744894259603,-500.0,0.0029041,120]
[358280463,1744894259613,-269.98,0.0029041,120]
[358280464,1744894259623,-500.0,0.0029041,120]
[358280465,1744894259632,-500.0,0.0029041,120]
[358280466,1744894259642,-500.0,0.0029041,120]
[358280467,1744894259652,-564.57,0.0029041,120]
[358280468,1744894259661,-500.0,0.0029041,120]
[358280469,1744894259671,-173.3,0.0029041,120]
[358280470,1744894259681,-500.0,0.0029041,120]
[358280471,1744894259692,-500.0,0.0029041,120]
[358280472,1744894259701,-500.0,0.0029041,120]
[358280473,1744894259711,-500.0,0.0029041,120]
[358280474,1744894259722,-222.81119583,0.0029041,120]
[358280475,1744894259732,-500.0,0.0029041,120]
[358280476,1744894259742,-500.0,0.0029041,120]
[358280477,1744894259753,-500.0,0.0029041,120]
[358280478,1744894259763,-500.0,0.0029041,120]
[358280479,1744894259772,-570.77,0.0029041,120]
[358280480,1744894259781,-952.0,0.0029041,120]
[358280481,1744894259790,-500.0,0.0029041,120]
[358280482,1744894259799,-500.0,0.0029041,120]
[358280483,1744894259808,-500.0,0.0029041,120]
[358280484,1744894259817,-500.0,0.0029041,120]
[358280485,1744894259826,-500.0,0.0029041,120]
[358280486,1744894259835,-500.0,0.0029041,120]
[358280487,1744894259844,-500.0,0.0029041,120]
[358280488,1744894259853,-500.0,0.0029041,120]
[358280489,1744894259862,-500.0,0.0029041,120]
[358280490,1744894259875,-500.0,0.0029041,120]
[358280491,1744894259885,-505.27,0.0029041,120]
[358280492,1744894259894,-500.0,0.0029041,120]
[358280493,1744894259905,-500.0,0.0029041,120]
[358280494,1744894259921,-500.0,0.0029041,120]
[358280495,1744894259930,-500.0,0.0029041,120]
[358280496,1744894259940,-500.0,0.0029041,120]
[358280497,1744894259950,-500.0,0.0029041,120]
[358280498,1744894259959,-580.71,0.0029041,120]
[358280499,1744894259969,-500.0,0.0029041,120]
[358280500,1744894259978,-500.0,0.0029041,120]
[358280501,1744894259988,-500.0,0.0029041,120]
[358280502,1744894259997,-500.0,0.0029041,120]
[358280503,1744894260007,-500.0,0.0029041,120]
[358280504,1744894260017,-500.0,0.0029041,120]
[358280505,1744894260027,-356.86181684,0.0029041,120]
[358280506,1744894260037,-500.0,0.0029041,120]
[358280507,1744894260047,-500.0,0.0029041,120]
[358280508,1744894260058,-500.0,0.0029041,120]
[358280509,1744894260068,-500.0,0.0029041,120]
[358280510,1744894260078,-500.0,0.0029041,120]
[358280511,1744894260088,-500.0,0.0029041,120]
[358280512,1744894260097,-500.0,0.0029041,120]
[358280513,1744894260106,-500.0,0.0029041,120]
[358280514,1744894260116,-500.0,0.0029041,120]
[358280515,1744894260126,-500.0,0.0029041,120]
[358280516,1744894260136,-500.0,0.0029041,120]
[358280517,1744894260145,-500.0,0.0029041,120]
[358280518,1744894260155,-500.0,0.0029041,120]
[358280519,1744894260164,-175.01,0.00291048,2]
[358280520,1744894260174,-2048.0,0.00295897,120]
[358280521,1744894260184,-59085.6165762,0.00296678,60]
[358280522,1744894260194,-181.10564663,0.00296678,60]
[358280523,1744894260203,-113283.240487,0.00296678,90]
[358280524,1744894260213,-6805.0,0.00296859,120]
[358280525,1744894260223,-150.0,0.00299,120]
[358280526,1744894260233,-424.966,0.00299995,2]
[358280527,1744894260243,-50000.0,0.003,2]
[358280528,1744894260253,-50000.0,0.003,120]
[358280529,1744894260264,-19980.52400194,0.003,120]
[358280530,1744894260274,-150.0,0.00304368,120]
[358280531,1744894260284,-500.0,0.00306848,120]
[358280532,1744894260293,-500.0,0.00306849,120]
[358280533,1744894260307,-616.9,0.00306849,120]
[358280534,1744894260317,-500.0,0.00306849,120]
[358280535,1744894260327,-500.0,0.00306849,2]
[358280536,1744894260336,-500.0,0.00306849,120]
[358280537,1744894260347,-500.0,0.00306849,120]
[358280538,1744894260356,-1000.0,0.00306849,120]
[358280539,1744894260365,-500.0,0.00306849,120]
[358280540,1744894260377,-500.0,0.00306849,120]
[358280541,1744894260387,-272.94395445,0.00306849,120]
[358280542,1744894260396,-500.0,0.00306849,120]
[358280543,1744894260406,-500.0,0.00306849,120]
[358280544,1744894260416,-500.0,0.00306849,120]
[358280545,1744894260426,-500.0,0.00306849,120]
[358280546,1744894260435,-500.0,0.00306849,120]
[358280547,1744894260445,-639.51,0.00306849,120]
[358280548,1744894260455,-632.56903775,0.00306849,120]
[358280549,1744894260464,-500.0,0.00306849,120]
[358280550,1744894260474,-500.0,0.00306849,120]
[358280551,1744894260483,-500.0,0.00306849,120]
[358280552,1744894260493,-500.0,0.00306849,120]
[358280553,1744894260502,-500.0,0.00306849,120]
[358280554,1744894260511,-504.43690969,0.00306849,120]
[358280555,1744894260520,-500.0,0.00306849,120]
[358280556,1744894260530,-500.0,0.00306849,120]
[358280557,1744894260539,-500.0,0.00306849,120]
[358280558,1744894260549,-500.0,0.00306849,120]
[358280559,1744894260559,-500.0,0.00306849,120]
[358280560,1744894260568,-500.0,0.00306849,120]
[358280561,1744894260577,-500.0,0.00306849,120]
[358280562,1744894260587,-500.0,0.00306849,120]
[358280563,1744894260597,-500.0,0.00306849,120]
[358280564,1744894260606,-500.001,0.00306849,120]
[358280565,1744894260616,-313.42,0.00306849,120]
[358280566,1744894260626,-296.73,0.00306849,120]
[358280567,1744894260635,-208.52,0.00306849,120]
[358280568,1744894260644,-500.0,0.00306849,120]
[358280569,1744894260654,-500.0,0.00306849,120]
[358280570,1744894260664,-500.0,0.00306849,120]
[358280571,1744894260673,-235.75,0.00306849,120]
[358280572,1744894260685,-500.0,0.00306849,120]
[358280573,1744894260695,-500.0,0.00306849,120]
[358280574,1744894260704,-500.0,0.00306849,120]
[358280575,1744894260714,-500.0,0.00306849,120]
[358280576,1744894260723,-302.71,0.00306849,120]
[358280577,1744894260733,-500.0,0.00306849,120]
[358280578,1744894260742,-500.0,0.00306849,120]
[358280579,1744894260752,-555.41430616,0.00306849,120]
[358280580,1744894260761,-500.0,0.00306849,120]
[358280581,1744894260771,-500.0,0.00306849,120]
[358280582,1744894260781,-500.0,0.00306849,120]
[358280583,1744894260791,-500.0,0.00306849,120]
[358280584,1744894260800,-500.0,0.00306849,120]
[358280585,1744894260810,-500.0,0.00306849,120]
[358280586,1744894260819,-500.0,0.00306849,120]
[358280587,1744894260829,-500.0,0.00306849,120]
[358280588,1744894260839,-500.0,0.00306849,120]
[358280589,1744894260848,-952.0,0.00306849,120]
[358280590,1744894260857,-500.0,0.00306849,120]
[358280591,1744894260867,-500.0,0.00306849,120]
[358280592,1744894260876,-500.0,0.00306849,120]
[358280593,1744894260885,-500.0,0.00306849,120]
[358280594,1744894260895,-500.0,0.00306849,120]
[358280595,1744894260904,-500.0,0.00306849,120]
[358280596,1744894260913,-596.31,0.00306849,120]
[358280597,1744894260922,-618.93,0.00306849,120]
[358280598,1744894260932,-500.0,0.00306849,120]
[358280599,1744894260941,-546.54,0.00306849,120]
[358280600,1744894260950,-310.44,0.00306849,120]
[358280601,1744894260959,-500.0,0.00306849,120]
[358280602,1744894260968,-458.9427191,0.00306849,120]
[358280603,1744894260978,-500.0,0.00306849,120]
[358280604,1744894260987,-500.0,0.00306849,120]
[358280605,1744894260996,-500.0,0.00306849,120]
[358280606,1744894261006,-500.0,0.00306849,120]
[358280607,1744894261015,-500.0,0.00306849,120]
[358280608,1744894261024,-500.0,0.00306849,120]
[358280609,1744894261034,-500.0,0.00306849,120]
[358280610,1744894261044,-500.0,0.00306849,120]
[358280611,1744894261053,-500.0,0.00306849,120]
[358280612,1744894261062,-500.0,0.00306849,120]
[358280613,1744894261072,-500.0,0.00306849,120]
[358280614,1744894261081,-500.0,0.00306849,120]
[358280615,1744894261090,-500.0,0.00306849,120]
[358280616,1744894261099,-500.0,0.00306849,120]
[358280617,1744894261108,-500.0,0.00306849,120]
[358280618,1744894261117,-500.0,0.00306849,120]
[358280619,1744894261127,-176.0,0.0031,2]
[358280620,1744894261136,-900.0,0.00312457,5]
[358280621,1744894261146,-1000.0,0.00312848,120]
[358280622,1744894261156,-151.0,0.00318027,120]
[358280623,1744894261165,-1147.71366965,0.00320054,120]
[358280624,1744894261174,-500.0,0.00323287,120]
[358280625,1744894261184,-500.0,0.00323287,120]
[358280626,1744894261194,-211.47,0.00323287,2]
[358280627,1744894261205,-500.0,0.00323287,120]
[358280628,1744894261214,-161.31,0.00323287,120]
[358280629,1744894261224,-500.0,0.00323287,120]
[358280630,1744894261233,-514.98,0.00323287,120]
[358280631,1744894261242,-500.0,0.00323287,120]
[358280632,1744894261251,-548.9525522,0.00323287,120]
[358280633,1744894261260,-500.0,0.00323287,120]
[358280634,1744894261269,-628.41,0.00323287,120]
[358280635,1744894261279,-500.0,0.00323287,120]
[358280636,1744894261288,-274.77,0.00323287,120]
[358280637,1744894261302,-500.0,0.00323287,120]
[358280638,1744894261311,-624.44,0.00323287,120]
[358280639,1744894261321,-355.18434952,0.00323287,120]
[358280640,1744894261330,-341.18,0.00323287,120]
[358280641,1744894261339,-500.0,0.00323287,120]
[358280642,1744894261347,-546.48577822,0.00323287,120]
[358280643,1744894261356,-500.0,0.00323287,120]
[358280644,1744894261365,-532.87,0.00323287,120]
[358280645,1744894261375,-500.0,0.00323287,120]
[358280646,1744894261384,-500.0,0.00323287,120]
[358280647,1744894261393,-500.0,0.00323287,120]
[358280648,1744894261402,-494.97207497,0.00323287,120]
[358280649,1744894261411,-500.0,0.00323287,120]
[358280650,1744894261421,-289.29,0.00323287,120]
[358280651,1744894261431,-500.0,0.00323287,120]
[358280652,1744894261440,-500.0,0.00323287,120]
[358280653,1744894261450,-952.0,0.00323287,120]
[358280654,1744894261460,-500.0,0.00323287,120]
[358280655,1744894261469,-500.0,0.00323287,120]
[358280656,1744894261479,-500.0,0.00323287,120]
[358280657,1744894261488,-500.0,0.00323287,120]
[358280658,1744894261497,-500.0,0.00323287,120]
[358280659,1744894261508,-500.0,0.00323287,120]
[358280660,1744894261517,-500.0,0.00323287,120]
[358280661,1744894261526,-500.0,0.00323287,120]
[358280662,1744894261535,-500.0,0.00323287,120]
[358280663,1744894261544,-500.0,0.00323287,120]
[358280664,1744894261554,-500.0,0.00323287,120]
[358280665,1744894261563,-500.0,0.00323287,120]
[358280666,1744894261572,-500.0,0.00323287,120]
[358280667,1744894261581,-463.23,0.00323287,120]
[358280668,1744894261591,-500.0,0.00323287,120]
[358280669,1744894261600,-580.06158395,0.00323287,120]
[358280670,1744894261693,-500.0,0.00323287,120]
[358280671,1744894261715,-500.0,0.00323287,120]
[358280672,1744894261725,-500.0,0.00323287,120]
[358280673,1744894261734,-500.0,0.00323287,120]
[358280674,1744894261744,-500.0,0.00323287,120]
[358280675,1744894261753,-1000.0,0.00325,120]
[358280676,1744894261762,-4825.74938904,0.0032516,15]
[358280677,1744894261771,-150.0,0.00330986,120]
[358280678,1744894261781,-150.0,0.00339073,120]
[358280679,1744894261790,-500.0,0.00339725,120]
[358280680,1744894261799,-164.96,0.00339726,120]
[358280681,1744894261809,-500.0,0.00339726,120]
[358280682,1744894261819,-373.868474,0.00339726,120]
[358280683,1744894261829,-500.0,0.00339726,120]
[358280684,1744894261839,-430.42,0.00339726,120]
[358280685,1744894261848,-500.0,0.00339726,120]
[358280686,1744894261858,-500.0,0.00339726,120]
[358280687,1744894261867,-500.0,0.00339726,120]
[358280688,1744894261877,-169.17,0.00339726,120]
[358280689,1744894261886,-952.0,0.00339726,120]
[358280690,1744894261896,-500.0,0.00339726,120]
[358280691,1744894261905,-500.0,0.00339726,120]
[358280692,1744894261915,-500.0,0.00339726,120]
[358280693,1744894261925,-254.93,0.00339726,120]
[358280694,1744894261934,-500.0,0.00339726,120]
[358280695,1744894261944,-500.0,0.00339726,120]
[358280696,1744894261954,-500.0,0.00339726,120]
[358280697,1744894261963,-500.0,0.00339726,120]
[358280698,1744894261972,-500.0,0.00339726,120]
[358280699,1744894261981,-432.16,0.00339726,120]
[358280700,1744894261991,-236.94,0.00339726,120]
[358280701,1744894262000,-500.0,0.00339726,120]
[358280702,1744894262011,-500.0,0.00339726,120]
[358280703,1744894262021,-500.0,0.00339726,120]
[358280704,1744894262030,-500.0,0.00339726,120]
[358280705,1744894262039,-1494.05,0.00349,120]
[358280706,1744894262048,-2000.0,0.00354,120]
[358280707,1744894262058,-5237.8094804,0.00356,35]
[358280708,1744894262068,-500.0,0.00356164,120]
[358280709,1744894262077,-500.0,0.00356164,120]
[358280710,1744894262087,-500.0,0.00356164,120]
[358280711,1744894262097,-502.16732335,0.00356164,120]
[358280712,1744894262106,-500.0,0.00356164,120]
[358280713,1744894262116,-952.0,0.00356164,120]
[358280714,1744894262126,-492.9,0.00356164,120]
[358280715,1744894262135,-500.0,0.00356164,120]
[358280716,1744894262145,-500.0,0.00356164,120]
[358280717,1744894262155,-500.0,0.00356164,120]
[358280718,1744894262165,-500.0,0.00356164,120]
[358280719,1744894262175,-500.0,0.00356164,120]
[358280720,1744894262184,-500.0,0.00356164,120]
[358280721,1744894262193,-500.0,0.00356164,120]
[358280722,1744894262202,-509.05605198,0.00356164,120]
[358280723,1744894262212,-372.49313895,0.00356167,2]
[358280724,1744894262222,-151.0,0.00363534,120]
[358280725,1744894262231,-500.0,0.00372602,120]
[358280726,1744894262241,-500.0,0.00372602,120]
[358280727,1744894262250,-500.0,0.00372602,120]
[358280728,1744894262260,-537.82,0.00372602,120]
[358280729,1744894262270,-952.0,0.00372602,120]
[358280730,1744894262279,-500.0,0.00372602,120]
[358280731,1744894262289,-500.0,0.00372602,120]
[358280732,1744894262300,-500.0,0.00372602,120]
[358280733,1744894262312,-500.0,0.00372602,120]
[358280734,1744894262321,-500.0,0.00372602,120]
[358280735,1744894262330,-500.0,0.00372602,120]
[358280736,1744894262340,-4825.74938904,0.00377708,15]
[358280737,1744894262351,-807.60802564,0.00383106,120]
[358280738,1744894262361,-500.0,0.00389041,120]
[358280739,1744894262370,-500.0,0.00389041,120]
[358280740,1744894262379,-500.0,0.00389041,120]
[358280741,1744894262390,-952.0,0.00389041,120]
[358280742,1744894262400,-500.0,0.00389041,120]
[358280743,1744894262410,-500.0,0.00389041,120]
[358280744,1744894262419,-500.0,0.00389041,120]
[358280745,1744894262429,-500.0,0.00389041,120]
[358280746,1744894262438,-500.0,0.00389041,120]
[358280747,1744894262447,-500.0,0.00389041,120]
[358280748,1744894262458,-113283.240487,0.00390069,120]
[358280749,1744894262467,-800.0,0.00391671,120]
[358280750,1744894262476,-800.0,0.00391671,120]
[358280751,1744894262486,-800.0,0.00391671,120]
[358280752,1744894262495,-800.0,0.00391671,120]
[358280753,1744894262505,-800.0,0.00391671,120]
[358280754,1744894262515,-800.0,0.00391671,120]
[358280755,1744894262524,-4000.0,0.003956,32]
[358280756,1744894262534,-800.0,0.0039715,120]
[358280757,1744894262543,-154.62,0.003985,87]
[358280758,1744894262552,-154.62,0.003985,87]
[358280759,1744894262562,-150.0,0.00399,120]
[358280760,1744894262572,-586.76696062,0.003999,30]
[358280761,1744894262581,-514.13,0.00399999,120]
[358280762,1744894262591,-50000.0,0.004,2]
[358280763,1744894262601,-50000.0,0.004,120]
[358280764,1744894262610,-1000.0,0.004,120]
[358280765,1744894262619,-4000.0,0.004,120]
[358280766,1744894262628,-60000.0,0.004,20]
[358280767,1744894262638,-800.0,0.0040263,120]
[358280768,1744894262647,-500.0,0.00405479,120]
[358280769,1744894262657,-500.0,0.00405479,120]
[358280770,1744894262666,-500.0,0.00405479,120]
[358280771,1744894262675,-952.0,0.00405479,120]